{"text_format":"3","workbook":"xlsx","n_sheets":2,"sheets":["Sākums","Personiskais ikmēneša budžets"],"not_rendered":{"images":1},"read":"whole","date_system":"1900"}

{"sheet":"Sākums","index":0,"n_rows":7,"n_cols":2,"rows_kept":7}
[null,"Par šo veidni"]
[null,"Izmantojiet šo personiskā ikmēneša budžeta darblapu, lai sekotu jūsu prognozētajiem un faktiskajiem mēneša ienākumiem, kā arī prognozētajām un faktiskajām izmaksām."]
[null,"Ievadiet radušos izdevumos dažādās kategorijās attiecīgajās tabulās."]
[null,"Prognozētā bilance, faktiskā bilance un starpība tiek aprēķināta automātiski."]
[null,"Piezīme. "]
[null,"Papildu norādījumi ir sniegti kolonnā A darblapā PERSONISKAIS IKMĒNEŠA BUDŽETS. Šis teksts ir paslēpts ar nolūku. Lai tekstu noņemtu, atlasiet kolonnu A, pēc tam atlasiet DZĒST. Lai parādītu slēpto tekstu, atlasiet kolonnu A, pēc tam nomainiet fonta krāsu."]
[null,"Lai iegūtu papildinformāciju par tabulām darblapā, nospiediet taustiņu SHIFT un pēc tam F10 tabulā, atlasiet opciju TABULA un pēc tam atlasiet ALTERNATĪVAIS TEKSTS."]

{"sheet":"Personiskais ikmēneša budžets","index":1,"n_rows":66,"n_cols":10,"rows_kept":66,"merged":[[3,1,3,2],[3,4,4,6],[3,7,4,7],[5,4,6,6],[5,7,6,7],[7,4,8,6],[7,7,8,7],[8,1,8,2],[24,6,24,9],[25,1,25,4],[33,6,33,9],[35,1,35,4],[40,6,40,9],[42,1,42,4],[46,6,46,9],[48,1,48,4],[52,6,52,9],[56,1,56,4],[59,6,59,9],[60,6,61,8],[60,9,61,9],[62,6,63,8],[62,9,63,9],[64,6,65,8],[64,9,65,9],[66,1,66,4]]}
["Šajā darblapā izveidojiet personisko ikmēneša budžetu. Noderīgi norādījumi par to, kā lietot šo darblapu, ir šīs kolonnas šūnās. Bultiņa uz leju, lai sāktu darbu."]
["Šīs darblapas nosaukums ir šūnā pa labi. Nākamais norādījums ir šūnā A5.",null,"Personiskais ikmēneša budžets"]
[]
["Etiķete Prognozētie mēneša ienākumi ir šūnā pa labi. Ievadiet Ienākums 1 šūnā C5 un papildienākumus šūnā C6, lai aprēķinātu kopējos mēneša ienākumus šūnā C7. Nākamais norādījums ir šūnā A7.","Plānotie ikmēneša ienākumi",null,null,"Plānotā bilance\n(Prognozētie ienākumi mīnus izdevumi)",null,null,{"$f":"C7-J61","v":{"v":3405,"d":"3,405.00 EUR"}}]
[null,"Ienākumi 1",{"v":4300,"d":"4,300.00 EUR"}]
[null,"Papildu ienākumi",{"v":300,"d":"300.00 EUR"},null,"Faktiskā bilance\n(Faktiskie ienākumi mīnus izdevumi)",null,null,{"$f":"C12-J63","v":{"v":3064,"d":"3,064.00 EUR"}}]
["Prognozētā bilance tiek automātiski aprēķināta šūnā H4, faktiskā bilance šūnā H6 un starpībā šūnā H8. Nākamais norādījums ir šūnā A9.","Kopējie ikmēneša ienākumi",{"$f":"SUM(C5:C6)","v":{"v":4600,"d":"4,600.00 EUR"}}]
[{"$nulls":4},"Starpība\n(Faktiskie mīnus plānotie)",null,null,{"$f":"H6-H4","v":{"v":-341,"d":"-341.00 EUR"}}]
["Etiķete Faktiskie mēneša ienākumi ir šūnā pa labi. Ievadiet 1. ienākumu šūnā C10 un papildienākumus šūnā C11, lai aprēķinātu kopējos mēneša ienākumus šūnā C12. Nākamais norādījums ir šūnā A14.","Faktiskie ikmēneša ienākumi"]
[null,"Ienākumi 1",{"v":4000,"d":"4,000.00 EUR"}]
[null,"Papildu ienākumi",{"v":300,"d":"300.00 EUR"}]
[null,"Kopējie mēneša ienākumi",{"$f":"SUM(C10:C11)","v":{"v":4300,"d":"4,300.00 EUR"}}]
[]
["Ievadiet detalizētu informāciju tabulā Mājoklis šūnā pa labi un tabulā Izklaide, sākot ar šūnu G14. Nākamais norādījums ir šūnā A27.","MĀJOKLIS","Prognozētās izmaksas","Faktiskās izmaksas","Starpība",null,"IZKLAIDE","Prognozētās izmaksas","Faktiskās izmaksas","Starpība"]
[null,"Hipotekārais kredīts vai īres maksa",{"v":1000,"d":"1,000.00 EUR"},{"v":1000,"d":"1,000.00 EUR"},{"$f":"Mājoklis[[#This Row],[Prognozētās izmaksas]]-Mājoklis[[#This Row],[Faktiskās izmaksas]]","v":{"v":0,"d":"0.00 EUR"}},null,"Video/DVD",null,null,{"$f":"Izklaide[[#This Row],[Prognozētās izmaksas]]-Izklaide[[#This Row],[Faktiskās izmaksas]]","v":{"v":0,"d":"0.00 EUR"}}]
[null,"Tālrunis",{"v":54,"d":"54.00 EUR"},{"v":100,"d":"100.00 EUR"},{"$f":"Mājoklis[[#This Row],[Prognozētās izmaksas]]-Mājoklis[[#This Row],[Faktiskās izmaksas]]","v":{"v":-46,"d":"-46.00 EUR"}},null,"CD",null,null,{"$f":"Izklaide[[#This Row],[Prognozētās izmaksas]]-Izklaide[[#This Row],[Faktiskās izmaksas]]","v":{"v":0,"d":"0.00 EUR"}}]
[null,"Elektrība",{"v":44,"d":"44.00 EUR"},{"v":56,"d":"56.00 EUR"},{"$f":"Mājoklis[[#This Row],[Prognozētās izmaksas]]-Mājoklis[[#This Row],[Faktiskās izmaksas]]","v":{"v":-12,"d":"-12.00 EUR"}},null,"Filmas",null,null,{"$f":"Izklaide[[#This Row],[Prognozētās izmaksas]]-Izklaide[[#This Row],[Faktiskās izmaksas]]","v":{"v":0,"d":"0.00 EUR"}}]
[null,"Gāze",{"v":22,"d":"22.00 EUR"},{"v":28,"d":"28.00 EUR"},{"$f":"Mājoklis[[#This Row],[Prognozētās izmaksas]]-Mājoklis[[#This Row],[Faktiskās izmaksas]]","v":{"v":-6,"d":"-6.00 EUR"}},null,"Koncerti",null,null,{"$f":"Izklaide[[#This Row],[Prognozētās izmaksas]]-Izklaide[[#This Row],[Faktiskās izmaksas]]","v":{"v":0,"d":"0.00 EUR"}}]
[null,"Ūdens un kanalizācija",{"v":8,"d":"8.00 EUR"},{"v":8,"d":"8.00 EUR"},{"$f":"Mājoklis[[#This Row],[Prognozētās izmaksas]]-Mājoklis[[#This Row],[Faktiskās izmaksas]]","v":{"v":0,"d":"0.00 EUR"}},null,"Sporta pasākumi",null,null,{"$f":"Izklaide[[#This Row],[Prognozētās izmaksas]]-Izklaide[[#This Row],[Faktiskās izmaksas]]","v":{"v":0,"d":"0.00 EUR"}}]
[null,"Kabeļtelevīzija",{"v":34,"d":"34.00 EUR"},{"v":34,"d":"34.00 EUR"},{"$f":"Mājoklis[[#This Row],[Prognozētās izmaksas]]-Mājoklis[[#This Row],[Faktiskās izmaksas]]","v":{"v":0,"d":"0.00 EUR"}},null,"Teātris",null,null,{"$f":"Izklaide[[#This Row],[Prognozētās izmaksas]]-Izklaide[[#This Row],[Faktiskās izmaksas]]","v":{"v":0,"d":"0.00 EUR"}}]
[null,"Atkritumu izvešana",{"v":10,"d":"10.00 EUR"},{"v":10,"d":"10.00 EUR"},{"$f":"Mājoklis[[#This Row],[Prognozētās izmaksas]]-Mājoklis[[#This Row],[Faktiskās izmaksas]]","v":{"v":0,"d":"0.00 EUR"}},null,"Citi",null,null,{"$f":"Izklaide[[#This Row],[Prognozētās izmaksas]]-Izklaide[[#This Row],[Faktiskās izmaksas]]","v":{"v":0,"d":"0.00 EUR"}}]
[null,"Apkope vai remonts",{"v":23,"d":"23.00 EUR"},{"v":0,"d":"0.00 EUR"},{"$f":"Mājoklis[[#This Row],[Prognozētās izmaksas]]-Mājoklis[[#This Row],[Faktiskās izmaksas]]","v":{"v":23,"d":"23.00 EUR"}},null,"Citi",null,null,{"$f":"Izklaide[[#This Row],[Prognozētās izmaksas]]-Izklaide[[#This Row],[Faktiskās izmaksas]]","v":{"v":0,"d":"0.00 EUR"}}]
[null,"Materiāli",{"v":0,"d":"0.00 EUR"},{"v":0,"d":"0.00 EUR"},{"$f":"Mājoklis[[#This Row],[Prognozētās izmaksas]]-Mājoklis[[#This Row],[Faktiskās izmaksas]]","v":{"v":0,"d":"0.00 EUR"}},null,"Citi",null,null,{"$f":"Izklaide[[#This Row],[Prognozētās izmaksas]]-Izklaide[[#This Row],[Faktiskās izmaksas]]","v":{"v":0,"d":"0.00 EUR"}}]
[null,"Citi",{"v":0,"d":"0.00 EUR"},{"v":0,"d":"0.00 EUR"},{"$f":"Mājoklis[[#This Row],[Prognozētās izmaksas]]-Mājoklis[[#This Row],[Faktiskās izmaksas]]","v":{"v":0,"d":"0.00 EUR"}},null,"Starpsumma",null,null,{"$f":"SUBTOTAL(109,Izklaide[Starpība])","v":{"v":0,"d":"0.00 EUR"}}]
[null,"Starpsumma",null,null,{"$f":"SUBTOTAL(109,Mājoklis[Starpība])","v":{"v":-41,"d":"-41.00 EUR"}}]
[{"$nulls":6},"AIZDEVUMI","Prognozētās izmaksas","Faktiskās izmaksas","Starpība"]
["Ievadiet detalizētu informāciju tabulā Transports šūnā pa labi un tabulā Aizdevumi, sākot ar šūnu G26. Nākamais norādījums ir šūnā A37.","TRANSPORTS","Prognozētās izmaksas","Faktiskās izmaksas","Starpība",null,"Personisks",null,null,{"$f":"Aizdevumi[[#This Row],[Prognozētās izmaksas]]-Aizdevumi[[#This Row],[Faktiskās izmaksas]]","v":{"v":0,"d":"0.00 EUR"}}]
[null,"Maksājums par transportlīdzekli",null,null,{"$f":"Transports[[#This Row],[Prognozētās izmaksas]]-Transports[[#This Row],[Faktiskās izmaksas]]","v":{"v":0,"d":"0.00 EUR"}},null,"Mācību",null,null,{"$f":"Aizdevumi[[#This Row],[Prognozētās izmaksas]]-Aizdevumi[[#This Row],[Faktiskās izmaksas]]","v":{"v":0,"d":"0.00 EUR"}}]
[null,"Maksa par braucienu ar autobusu/taksometru",null,null,{"$f":"Transports[[#This Row],[Prognozētās izmaksas]]-Transports[[#This Row],[Faktiskās izmaksas]]","v":{"v":0,"d":"0.00 EUR"}},null,"Kredītkarte",null,null,{"$f":"Aizdevumi[[#This Row],[Prognozētās izmaksas]]-Aizdevumi[[#This Row],[Faktiskās izmaksas]]","v":{"v":0,"d":"0.00 EUR"}}]
[null,"Apdrošināšana",null,null,{"$f":"Transports[[#This Row],[Prognozētās izmaksas]]-Transports[[#This Row],[Faktiskās izmaksas]]","v":{"v":0,"d":"0.00 EUR"}},null,"Kredītkarte",null,null,{"$f":"Aizdevumi[[#This Row],[Prognozētās izmaksas]]-Aizdevumi[[#This Row],[Faktiskās izmaksas]]","v":{"v":0,"d":"0.00 EUR"}}]
[null,"Licencēšana",null,null,{"$f":"Transports[[#This Row],[Prognozētās izmaksas]]-Transports[[#This Row],[Faktiskās izmaksas]]","v":{"v":0,"d":"0.00 EUR"}},null,"Kredītkarte",null,null,{"$f":"Aizdevumi[[#This Row],[Prognozētās izmaksas]]-Aizdevumi[[#This Row],[Faktiskās izmaksas]]","v":{"v":0,"d":"0.00 EUR"}}]
[null,"Degviela",null,null,{"$f":"Transports[[#This Row],[Prognozētās izmaksas]]-Transports[[#This Row],[Faktiskās izmaksas]]","v":{"v":0,"d":"0.00 EUR"}},null,"Citi",null,null,{"$f":"Aizdevumi[[#This Row],[Prognozētās izmaksas]]-Aizdevumi[[#This Row],[Faktiskās izmaksas]]","v":{"v":0,"d":"0.00 EUR"}}]
[null,"Uzturēšana",null,null,{"$f":"Transports[[#This Row],[Prognozētās izmaksas]]-Transports[[#This Row],[Faktiskās izmaksas]]","v":{"v":0,"d":"0.00 EUR"}},null,"Starpsumma",null,null,{"$f":"SUBTOTAL(109,Aizdevumi[Starpība])","v":{"v":0,"d":"0.00 EUR"}}]
[null,"Citi",null,null,{"$f":"Transports[[#This Row],[Prognozētās izmaksas]]-Transports[[#This Row],[Faktiskās izmaksas]]","v":{"v":0,"d":"0.00 EUR"}}]
[null,"Starpsumma",null,null,{"$f":"SUBTOTAL(109,Transports[Starpība])","v":{"v":0,"d":"0.00 EUR"}},null,"NODOKĻI","Prognozētās izmaksas","Faktiskās izmaksas","Starpība"]
[{"$nulls":6},"Federālie",null,null,{"$f":"Nodokļi[[#This Row],[Prognozētās izmaksas]]-Nodokļi[[#This Row],[Faktiskās izmaksas]]","v":{"v":0,"d":"0.00 EUR"}}]
["Ievadiet detalizētu informāciju tabulā Apdrošināšana, sākot ar šūnu pa labi, un tabulā Nodokļi, sākot ar šūnu G35. Nākamais norādījums ir šūnā A44.","APDROŠINĀŠANA","Prognozētās izmaksas","Faktiskās izmaksas","Starpība",null,"Valsts",null,null,{"$f":"Nodokļi[[#This Row],[Prognozētās izmaksas]]-Nodokļi[[#This Row],[Faktiskās izmaksas]]","v":{"v":0,"d":"0.00 EUR"}}]
[null,"Mājas",null,null,{"$f":"Apdrošināšana[[#This Row],[Prognozētās izmaksas]]-Apdrošināšana[[#This Row],[Faktiskās izmaksas]]","v":{"v":0,"d":"0.00 EUR"}},null,"Vietējie",null,null,{"$f":"Nodokļi[[#This Row],[Prognozētās izmaksas]]-Nodokļi[[#This Row],[Faktiskās izmaksas]]","v":{"v":0,"d":"0.00 EUR"}}]
[null,"Veselība",null,null,{"$f":"Apdrošināšana[[#This Row],[Prognozētās izmaksas]]-Apdrošināšana[[#This Row],[Faktiskās izmaksas]]","v":{"v":0,"d":"0.00 EUR"}},null,"Citi",null,null,{"$f":"Nodokļi[[#This Row],[Prognozētās izmaksas]]-Nodokļi[[#This Row],[Faktiskās izmaksas]]","v":{"v":0,"d":"0.00 EUR"}}]
[null,"Dzīvība",null,null,{"$f":"Apdrošināšana[[#This Row],[Prognozētās izmaksas]]-Apdrošināšana[[#This Row],[Faktiskās izmaksas]]","v":{"v":0,"d":"0.00 EUR"}},null,"Starpsumma",null,null,{"$f":"SUBTOTAL(109,Nodokļi[Starpība])","v":{"v":0,"d":"0.00 EUR"}}]
[null,"Citi",null,null,{"$f":"Apdrošināšana[[#This Row],[Prognozētās izmaksas]]-Apdrošināšana[[#This Row],[Faktiskās izmaksas]]","v":{"v":0,"d":"0.00 EUR"}}]
[null,"Starpsumma",null,null,{"$f":"SUBTOTAL(109,Apdrošināšana[Starpība])","v":{"v":0,"d":"0.00 EUR"}},null,"IETAUPĪJUMI VAI IEGULDĪJUMI","Prognozētās izmaksas","Faktiskās izmaksas","Starpība"]
[{"$nulls":6},"Pensijas konts",null,null,{"$f":"Ietaupījumi[[#This Row],[Prognozētās izmaksas]]-Ietaupījumi[[#This Row],[Faktiskās izmaksas]]","v":{"v":0,"d":"0.00 EUR"}}]
["Ievadiet detalizētu informāciju tabulā Pārtika šūnā pa labi un tabulā Ietaupījumi, sākot ar šūnu G42. Nākamais norādījums ir šūnā A50.","PĀRTIKA","Prognozētās izmaksas","Faktiskās izmaksas","Starpība",null,"Ieguldījumu konts",null,null,{"$f":"Ietaupījumi[[#This Row],[Prognozētās izmaksas]]-Ietaupījumi[[#This Row],[Faktiskās izmaksas]]","v":{"v":0,"d":"0.00 EUR"}}]
[null,"Pārtikas preces",null,null,{"$f":"Pārtika[[#This Row],[Prognozētās izmaksas]]-Pārtika[[#This Row],[Faktiskās izmaksas]]","v":{"v":0,"d":"0.00 EUR"}},null,"Citi",null,null,{"$f":"Ietaupījumi[[#This Row],[Prognozētās izmaksas]]-Ietaupījumi[[#This Row],[Faktiskās izmaksas]]","v":{"v":0,"d":"0.00 EUR"}}]
[null,"Vakariņas restorānā",null,null,{"$f":"Pārtika[[#This Row],[Prognozētās izmaksas]]-Pārtika[[#This Row],[Faktiskās izmaksas]]","v":{"v":0,"d":"0.00 EUR"}},null,"Starpsumma",null,null,{"$f":"SUBTOTAL(109,Ietaupījumi[Starpība])","v":{"v":0,"d":"0.00 EUR"}}]
[null,"Citi",null,null,{"$f":"Pārtika[[#This Row],[Prognozētās izmaksas]]-Pārtika[[#This Row],[Faktiskās izmaksas]]","v":{"v":0,"d":"0.00 EUR"}}]
[null,"Starpsumma",null,null,{"$f":"SUBTOTAL(109,Pārtika[Starpība])","v":{"v":0,"d":"0.00 EUR"}},null,"DĀVANAS UN ZIEDOJUMI","Prognozētās izmaksas","Faktiskās izmaksas","Starpība"]
[{"$nulls":6},"Labdarība 1",null,null,{"$f":"Dāvanas[[#This Row],[Prognozētās izmaksas]]-Dāvanas[[#This Row],[Faktiskās izmaksas]]","v":{"v":0,"d":"0.00 EUR"}}]
["Ievadiet detalizētu informāciju tabulā Mājdzīvnieki, sākot ar šūnu pa labi, un tabulā Dāvanas, sākot ar šūnu G48. Nākamais norādījums ir šūnā A58.","MĀJDZĪVNIEKI","Prognozētās izmaksas","Faktiskās izmaksas","Starpība",null,"Labdarība 2",null,null,{"$f":"Dāvanas[[#This Row],[Prognozētās izmaksas]]-Dāvanas[[#This Row],[Faktiskās izmaksas]]","v":{"v":0,"d":"0.00 EUR"}}]
[null,"Pārtika",null,null,{"$f":"Mājdzīvnieki[[#This Row],[Prognozētās izmaksas]]-Mājdzīvnieki[[#This Row],[Faktiskās izmaksas]]","v":{"v":0,"d":"0.00 EUR"}},null,"Labdarība 3",null,null,{"$f":"Dāvanas[[#This Row],[Prognozētās izmaksas]]-Dāvanas[[#This Row],[Faktiskās izmaksas]]","v":{"v":0,"d":"0.00 EUR"}}]
[null,"Medikamenti",null,null,{"$f":"Mājdzīvnieki[[#This Row],[Prognozētās izmaksas]]-Mājdzīvnieki[[#This Row],[Faktiskās izmaksas]]","v":{"v":0,"d":"0.00 EUR"}},null,"Starpsumma",null,null,{"$f":"SUBTOTAL(109,Dāvanas[Starpība])","v":{"v":0,"d":"0.00 EUR"}}]
[null,"Kopšana",null,null,{"$f":"Mājdzīvnieki[[#This Row],[Prognozētās izmaksas]]-Mājdzīvnieki[[#This Row],[Faktiskās izmaksas]]","v":{"v":0,"d":"0.00 EUR"}}]
[null,"Rotaļlietas",null,null,{"$f":"Mājdzīvnieki[[#This Row],[Prognozētās izmaksas]]-Mājdzīvnieki[[#This Row],[Faktiskās izmaksas]]","v":{"v":0,"d":"0.00 EUR"}},null,"JURIDISKIE PAKALPOJUMI","Prognozētās izmaksas","Faktiskās izmaksas","Starpība"]
[null,"Citi",null,null,{"$f":"Mājdzīvnieki[[#This Row],[Prognozētās izmaksas]]-Mājdzīvnieki[[#This Row],[Faktiskās izmaksas]]","v":{"v":0,"d":"0.00 EUR"}},null,"Advokāts",null,null,{"$f":"Juridiskie_pakalpojumi[[#This Row],[Prognozētās izmaksas]]-Juridiskie_pakalpojumi[[#This Row],[Faktiskās izmaksas]]","v":{"v":0,"d":"0.00 EUR"}}]
[null,"Starpsumma",null,null,{"$f":"SUBTOTAL(109,Mājdzīvnieki[Starpība])","v":{"v":0,"d":"0.00 EUR"}},null,"Alimenti",null,null,{"$f":"Juridiskie_pakalpojumi[[#This Row],[Prognozētās izmaksas]]-Juridiskie_pakalpojumi[[#This Row],[Faktiskās izmaksas]]","v":{"v":0,"d":"0.00 EUR"}}]
[{"$nulls":6},"Maksājumi ar aizturējuma tiesībām vai nolēmumu",null,null,{"$f":"Juridiskie_pakalpojumi[[#This Row],[Prognozētās izmaksas]]-Juridiskie_pakalpojumi[[#This Row],[Faktiskās izmaksas]]","v":{"v":0,"d":"0.00 EUR"}}]
["Ievadiet detalizētu informāciju tabulā Personiskā higiēna, sākot ar šūnu pa labi un tabulā Juridiskie pakalpojumi, sākot ar šūnu G54. Nākamais norādījums ir šūnā A61.","PERSONISKĀ HIGIĒNA","Prognozētās izmaksas","Faktiskās izmaksas","Starpība",null,"Citi",null,null,{"$f":"Juridiskie_pakalpojumi[[#This Row],[Prognozētās izmaksas]]-Juridiskie_pakalpojumi[[#This Row],[Faktiskās izmaksas]]","v":{"v":0,"d":"0.00 EUR"}}]
[null,"Medikamenti",null,null,{"$f":"Personiskā_higiēna[[#This Row],[Prognozētās izmaksas]]-Personiskā_higiēna[[#This Row],[Faktiskās izmaksas]]","v":{"v":0,"d":"0.00 EUR"}},null,"Starpsumma",null,null,{"$f":"SUBTOTAL(109,Juridiskie_pakalpojumi[Starpība])","v":{"v":0,"d":"0.00 EUR"}}]
[null,"Mati/nagi",null,null,{"$f":"Personiskā_higiēna[[#This Row],[Prognozētās izmaksas]]-Personiskā_higiēna[[#This Row],[Faktiskās izmaksas]]","v":{"v":0,"d":"0.00 EUR"}}]
["Kopējās prognozētās izmaksas tiek automātiski aprēķinātas šūnā J61, kopējās faktiskās izmaksas tiek aprēķinātas šūnā J63 un kopējā starpība tiek aprēķināta šūnā J65.","Apģērbs",null,null,{"$f":"Personiskā_higiēna[[#This Row],[Prognozētās izmaksas]]-Personiskā_higiēna[[#This Row],[Faktiskās izmaksas]]","v":{"v":0,"d":"0.00 EUR"}},null,"Kopējās prognozētās izmaksas",null,null,{"$f":"SUBTOTAL(109,Mājoklis[Prognozētās izmaksas],Transports[Prognozētās izmaksas],Apdrošināšana[Prognozētās izmaksas],Pārtika[Prognozētās izmaksas],Mājdzīvnieki[Prognozētās izmaksas],Personiskā_higiēna[Prognozētās izmaksas],Izklaide[Prognozētās izmaksas],Aizdevumi[Prognozētās izmaksas],Nodokļi[Prognozētās izmaksas],Ietaupījumi[Prognozētās izmaksas],Dāvanas[Prognozētās izmaksas],Juridiskie_pakalpojumi[Prognozētās izmaksas])","v":{"v":1195,"d":"1,195.00 EUR"}}]
[null,"Ķīmiskā tīrītava",null,null,{"$f":"Personiskā_higiēna[[#This Row],[Prognozētās izmaksas]]-Personiskā_higiēna[[#This Row],[Faktiskās izmaksas]]","v":{"v":0,"d":"0.00 EUR"}}]
[null,"Sporta klubs",null,null,{"$f":"Personiskā_higiēna[[#This Row],[Prognozētās izmaksas]]-Personiskā_higiēna[[#This Row],[Faktiskās izmaksas]]","v":{"v":0,"d":"0.00 EUR"}},null,"Kopējās faktiskās izmaksas",null,null,{"$f":"SUBTOTAL(109,Mājoklis[Faktiskās izmaksas],Transports[Faktiskās izmaksas],Apdrošināšana[Faktiskās izmaksas],Pārtika[Faktiskās izmaksas],Mājdzīvnieki[Faktiskās izmaksas],Personiskā_higiēna[Faktiskās izmaksas],Izklaide[Faktiskās izmaksas],Aizdevumi[Faktiskās izmaksas],Nodokļi[Faktiskās izmaksas],Ietaupījumi[Faktiskās izmaksas],Dāvanas[Faktiskās izmaksas],Juridiskie_pakalpojumi[Faktiskās izmaksas])","v":{"v":1236,"d":"1,236.00 EUR"}}]
[null,"Organizācijas nodevas vai maksājumi",null,null,{"$f":"Personiskā_higiēna[[#This Row],[Prognozētās izmaksas]]-Personiskā_higiēna[[#This Row],[Faktiskās izmaksas]]","v":{"v":0,"d":"0.00 EUR"}}]
[null,"Citi",null,null,{"$f":"Personiskā_higiēna[[#This Row],[Prognozētās izmaksas]]-Personiskā_higiēna[[#This Row],[Faktiskās izmaksas]]","v":{"v":0,"d":"0.00 EUR"}},null,"Kopējā starpība",null,null,{"$f":"J61-J63","v":{"v":-41,"d":"-41.00 EUR"}}]
[null,"Starpsumma",null,null,{"$f":"SUBTOTAL(109,Personiskā_higiēna[Starpība])","v":{"v":0,"d":"0.00 EUR"}}]